bitfinex-derivatives/quotes_SOLF0:USTF0_20260207
["timestamp","ask_amount","ask_price","bid_price","bid_amount"]
[1770471962904,4.23810725,85.86,85.817,30.73223054]
[1770471963812,4.23810725,85.86,85.822,30.73223054]
[1770471964208,4.23810725,85.86,85.761,35.04]
[1770471964209,4.23810725,85.88,85.831,30.73223054]
[1770471965708,4.23810725,85.88,85.84,30.73223054]
[1770471966407,14.72900725,85.89,85.842,31.11712112]
[1770471966814,10.74949444,85.907,85.861,31.11712112]
[1770471967009,4.23810725,85.89,85.814,31.11712112]
[1770471967207,4.23810725,85.89,85.754,176.0]
[1770471967208,4.23810725,85.88,85.831,31.11712112]
[1770471967407,28.95677817,85.9,85.79,62.0]
[1770471967408,4.23810725,85.89,85.84,35.35522837]
[1770471967815,4.23810725,85.89,85.84,31.11712112]
[1770471968019,4.23810725,85.89,85.83,4.23810725]
[1770471968020,28.95677817,85.899,85.845,31.11712112]
[1770471968217,163.0547,85.963,85.845,31.11712112]
[1770471968218,4.23810725,85.88,85.845,31.11712112]
[1770471968807,4.23810725,85.86,85.828,31.11712112]
[1770471970013,4.23810725,85.87,85.828,31.11712112]
[1770471971514,4.23810725,85.86,85.828,31.11712112]
[1770471973113,4.23810725,85.87,85.828,31.11712112]
[1770471973318,30.18130099,85.891,85.831,31.75008022]
[1770471973620,40.67050099,85.904,85.854,31.75008022]
[1770471973920,4.23810725,85.9,85.854,31.75008022]
[1770471974614,4.23810725,85.9,85.864,10.494]
[1770471974814,4.23810725,85.9,85.854,31.75008022]
[1770471975720,4.23810725,85.9,85.856,31.75008022]
[1770471976017,4.23810725,85.89,85.856,31.75008022]
[1770471976417,4.23810725,85.9,85.857,31.75008022]
[1770471976917,4.23810725,85.89,85.841,31.75008022]
[1770471977119,4.23810725,85.88,85.841,31.75008022]
[1770471978720,30.18130099,85.913,85.861,31.75008022]
[1770471979023,4.23810725,85.91,85.861,31.75008022]
[1770471979225,4.23810725,85.91,85.814,14.30788965]
[1770471979226,4.23810725,85.92,85.871,31.75008022]
[1770471980721,4.23810725,85.91,85.873,31.75008022]
[1770471981827,4.23810725,85.91,85.877,31.75008022]
[1770471982021,4.23810725,85.92,85.877,31.75008022]
[1770471983126,4.23810725,85.9,85.863,31.75008022]
[1770471984726,4.23810725,85.9,85.866,31.75008022]
[1770471984924,4.23810725,85.9,85.806,177.65818965]
[1770471984925,30.18130099,85.937,85.871,31.75008022]
[1770471985126,4.23810725,85.93,85.881,31.75008022]
[1770471986232,4.23810725,85.92,85.881,31.75008022]
[1770471986726,4.23810725,85.92,85.885,10.4913]
[1770471987033,4.23810725,85.92,85.881,31.75008022]
[1770471987227,4.23810725,85.91,85.881,31.75008022]
[1770471987421,30.18130099,85.925,85.881,31.75008022]
[1770471987422,4.23810725,85.9,85.881,31.75008022]
[1770471989325,4.23810725,85.91,85.881,31.75008022]
[1770471992023,4.23810725,85.9,85.869,31.75008022]
[1770471992226,4.23810725,85.91,85.869,31.75008022]
[1770471992426,4.23810725,85.92,85.871,31.75008022]
[1770471992733,4.23810725,85.92,85.879,31.75008022]
[1770471993126,4.23810725,85.91,85.879,31.75008022]
[1770471993726,4.23810725,85.91,85.881,31.75008022]
[1770471995523,4.23239238,85.91,85.881,31.75008022]
[1770471998430,4.23239238,85.91,85.881,42.24198022]
[1770471998733,4.23239238,85.91,85.882,29.50651421]
[1770472000737,30.18130099,85.929,85.884,29.50651421]
[1770472000738,4.23239238,85.92,85.884,29.50651421]
[1770472001837,4.23239238,85.92,85.886,39.99781421]
[1770472002534,4.23239238,85.92,85.887,29.50651421]
[1770472002727,4.23239238,85.93,85.893,29.50651421]
[1770472003840,4.23239238,85.93,85.895,29.50651421]
[1770472005130,40.14816444,85.941,85.895,29.50651421]
[1770472005131,4.23239238,85.92,85.895,29.50651421]
[1770472007540,4.23239238,85.91,85.882,29.50651421]
[1770472007845,4.23239238,85.92,85.882,29.50651421]
[1770472008142,4.23239238,85.92,85.886,29.50651421]
[1770472008341,4.23239238,85.91,85.886,29.50651421]
[1770472009939,4.23239238,85.93,85.886,29.50651421]
[1770472010743,4.23239238,85.93,85.891,10.4907]
[1770472010947,4.23239238,85.93,85.892,29.50651421]
[1770472011349,4.23239238,85.92,85.892,29.50651421]
[1770472013650,4.23239238,85.93,85.892,29.50651421]
[1770472014356,29.66346444,85.941,85.9,10.4896]
[1770472014549,4.23239238,85.94,85.901,29.50651421]
[1770472015750,4.23239238,85.94,85.903,29.50651421]
[1770472015952,4.23239238,85.93,85.903,29.50651421]
[1770472017852,4.23239238,85.92,85.888,29.50651421]
[1770472018957,4.23239238,85.92,85.89,29.50651421]
[1770472019457,4.23239238,85.91,85.89,29.50651421]
[1770472021261,10.4861,85.93,85.89,29.50651421]
[1770472021262,4.23239238,85.93,85.89,29.50651421]
[1770472021658,33.89585682,85.94,85.89,29.50651421]
[1770472022254,4.23239238,85.93,85.89,29.50651421]
[1770472022847,4.23239238,85.93,85.903,29.50651421]
[1770472026555,10.74949444,85.939,85.903,29.50651421]
[1770472026763,4.23239238,85.94,85.903,29.50651421]
[1770472026956,10.74949444,85.937,85.903,29.50651421]
[1770472027157,4.23239238,85.93,85.903,29.50651421]
[1770472028463,10.4841,85.946,85.903,29.50651421]
[1770472028464,4.23239238,85.94,85.903,29.50651421]
[1770472028954,4.23239238,85.94,85.906,28.66392183]
[1770472030764,4.23239238,85.94,85.89,4.23239238]
[1770472030765,10.74949444,85.948,85.912,29.49963308]
[1770472031655,4.23239238,85.93,85.912,29.49963308]
[1770472032064,4.23239238,85.92,85.888,10.491]
[1770472032267,4.23239238,85.92,85.889,29.49963308]
[1770472032752,4.23239238,85.93,85.889,29.49963308]
[1770472033152,14.98188682,85.93,85.889,29.49963308]
[1770472033654,4.23239238,85.92,85.889,29.49963308]
[1770472036560,4.23239238,85.92,85.893,29.49963308]
[1770472040969,28.40293373,85.919,85.877,29.49963308]
[1770472041170,28.40293373,85.919,85.866,29.49963308]
[1770472041171,4.23239238,85.89,85.866,29.49963308]
[1770472041464,4.23239238,85.88,85.831,29.49963308]
[1770472042259,9.238e-05,85.88,85.857,29.49963308]
[1770472042462,4.23239238,85.89,85.857,29.49963308]
[1770472042863,4.23239238,85.89,85.84,4.23239238]
[1770472042864,10.81333262,85.912,85.867,29.49963308]
[1770472043070,4.23239238,85.92,85.871,29.49963308]
[1770472043668,4.23239238,85.9,85.866,29.49963308]
[1770472044764,4.23239238,85.91,85.871,29.49963308]
[1770472045768,4.23239238,85.91,85.88,29.49963308]
[1770472051091,4.23239238,85.91,85.882,29.49963308]
[1770472057491,4.23240451,85.91,85.882,29.49963308]
[1770472058490,4.23240451,85.9,85.836,29.62304713]
[1770472058698,4.23240451,85.89,85.862,29.62304713]
[1770472061398,4.23240451,85.88,85.862,29.62304713]
[1770472061985,14.31139078,85.914,85.823,255.27411558]
[1770472061986,4.23240451,85.87,85.85,29.62304713]
[1770472066399,4.23240451,85.88,85.85,29.62304713]
[1770472068194,4.23240451,85.89,85.85,29.62304713]
[1770472068398,31.8178044,85.89,85.85,29.62304713]
[1770472069299,4.23240451,85.88,85.85,29.62304713]
[1770472070101,4.23240451,85.92,85.871,29.62304713]
[1770472070292,4.23240451,85.91,85.871,29.62304713]
[1770472070496,4.23240451,85.9,85.871,29.62304713]
[1770472070698,4.23240451,85.89,85.871,29.62304713]
[1770472071097,4.23240451,85.89,85.841,29.62304713]
[1770472071497,27.58539989,85.908,85.841,29.62304713]
[1770472071699,4.23240451,85.9,85.862,10.4942]
[1770472071895,4.23240451,85.9,85.85,4.23240451]
[1770472071896,4.23240451,85.89,85.85,29.62304713]
[1770472072094,4.23240451,85.88,85.85,29.62304713]
[1770472072704,21.3500632,85.93,85.85,29.62304713]
[1770472072705,4.23240451,85.87,85.85,29.62304713]
[1770472076111,4.23240451,85.87,85.838,29.62304713]
[1770472076902,4.23240451,85.87,85.84,29.62304713]
[1770472079208,31.8178044,85.88,85.84,29.62304713]
[1770472082415,31.8178044,85.88,85.845,29.62304713]
[1770472083712,31.8178044,85.88,85.846,10.4962]
[1770472085408,4.23240451,85.91,85.861,29.62304713]
[1770472085610,31.8178044,85.91,85.861,29.62304713]
[1770472086518,4.23240451,85.92,85.871,27.68868698]
[1770472087207,4.23240451,85.92,85.878,27.68868698]
[1770472088818,4.23240451,85.92,85.884,27.68868698]
[1770472093311,4.23240451,85.91,85.884,27.68868698]
[1770472094220,4.23240451,85.9,85.871,10.493]
[1770472094621,4.23240451,85.9,85.871,38.97359382]
[1770472095021,4.23240451,85.89,85.871,28.48059382]
[1770472096724,14.31139078,85.928,85.871,28.48059382]
[1770472096725,4.23240451,85.9,85.871,28.48059382]
[1770472098322,31.01356168,85.89,85.84,4.23240451]
[1770472098525,4.23240451,85.88,85.843,28.48059382]
[1770472099224,31.01356168,85.89,85.851,10.4956]
[1770472099411,4.23240451,85.89,85.852,28.48059382]
[1770472104230,4.23240451,85.88,85.852,28.48059382]
[1770472104428,4.23240451,85.89,85.852,28.48059382]
[1770472105721,4.23240451,85.89,85.855,28.48059382]
[1770472106230,4.23240451,85.89,85.864,28.48059382]
[1770472107725,4.23240451,85.89,85.854,10.4952]
[1770472107926,4.23240451,85.89,85.855,28.48059382]
[1770472108127,4.23240451,85.88,85.855,28.48059382]
[1770472109120,4.23240451,85.89,85.859,28.48059382]
[1770472109428,26.78115717,85.897,85.859,28.48059382]
[1770472109927,26.78115717,85.897,85.864,28.48059382]
[1770472110627,26.78115717,85.897,85.853,28.48059382]
[1770472112130,4.23240451,85.89,85.855,28.48059382]
[1770472113929,4.23240451,85.91,85.861,28.48059382]
[1770472114728,4.23240451,85.91,85.875,28.48059382]
[1770472115830,4.23240451,85.91,85.877,28.28387974]
[1770472116734,4.23240451,85.93,85.89,28.28387974]
[1770472117241,32.24485655,85.93,85.89,28.28387974]
[1770472117441,4.23136699,85.92,85.89,28.28387974]
[1770472117737,4.23136699,85.92,85.891,10.4907]
[1770472118831,4.23136699,85.91,85.877,28.28387974]
[1770472119039,4.23136699,85.92,85.877,28.28387974]
[1770472119835,4.23136699,85.92,85.879,28.28387974]
[1770472121240,28.01245204,85.922,85.879,28.28387974]
[1770472122036,4.23136699,85.89,85.841,28.28387974]
[1770472122237,4.23136699,85.9,85.851,28.28387974]
[1770472122441,28.01245204,85.918,85.873,28.28387974]
[1770472123036,28.01245204,85.931,85.886,28.28387974]
[1770472123241,28.01245204,85.931,85.89,4.23136699]
[1770472123431,28.01245204,85.931,85.89,32.51524673]
[1770472123632,28.01245204,85.931,85.89,28.28387974]
[1770472124342,4.23136699,85.93,85.89,28.28387974]
[1770472124543,4.23136699,85.92,85.89,28.28387974]
[1770472125737,32.24381903,85.92,85.878,28.28387974]
[1770472125937,4.23136699,85.91,85.878,28.28387974]
[1770472126334,4.23136699,85.91,85.867,10.4935]
[1770472126335,32.24381903,85.91,85.867,38.77737974]
[1770472126539,32.24381903,85.91,85.867,28.28387974]
[1770472128445,4.23136699,85.92,85.871,28.28387974]
[1770472128946,32.24381903,85.92,85.871,28.28387974]
[1770472129743,32.24381903,85.92,85.873,28.28387974]
[1770472134652,28.01245204,85.909,85.873,28.28387974]
[1770472139748,15.00683572,85.93,85.881,28.28387974]
[1770472139948,28.01245204,85.933,85.881,28.28387974]
[1770472140258,28.01245204,85.933,85.891,28.28387974]
[1770472140442,28.01245204,85.929,85.891,28.28387974]
[1770472142452,4.23136699,85.92,85.891,28.28387974]
[1770472143151,32.24381903,85.92,85.879,28.28387974]
[1770472144955,28.01245204,85.909,85.871,10.4931]
[1770472145357,28.01245204,85.909,85.882,10.4918]
[1770472145653,28.01245204,85.922,85.882,10.4918]
[1770472146559,28.01245204,85.922,85.882,39.28253714]
[1770472148247,28.01245204,85.922,85.883,28.79073714]
[1770472148851,28.01245204,85.922,85.882,10.4918]
[1770472148852,26.94399849,85.935,85.885,28.79073714]
[1770472149156,26.94399849,85.929,85.885,28.79073714]
[1770472149855,26.94399849,85.919,85.871,28.79073714]
[1770472150951,26.94399849,85.919,85.873,26.37643356]
[1770472151852,26.94399849,85.919,85.874,36.86913356]
[1770472152254,26.94399849,85.919,85.876,10.4925]
[1770472153160,26.94399849,85.919,85.876,36.86893356]
[1770472155758,37.75384993,85.934,85.886,26.37643356]
[1770472155958,37.75384993,85.934,85.85,14.30788965]
[1770472155959,37.75384993,85.934,85.891,26.37643356]
[1770472157354,15.02190266,85.94,85.891,26.37643356]
[1770472157355,4.23136699,85.94,85.897,10.49]
[1770472157561,4.23136699,85.94,85.898,26.37643356]
[1770472159373,27.26824993,85.929,85.889,36.86723356]
[1770472159560,27.26824993,85.929,85.89,26.37643356]
[1770472165566,27.26824993,85.929,85.889,10.4908]
[1770472165759,27.26824993,85.929,85.89,26.37643356]
[1770472165961,27.26824993,85.929,85.894,26.37643356]
[1770472166658,27.26824993,85.929,85.88,4.23136699]
[1770472166659,4.23136699,85.96,85.911,26.37643356]
[1770472166972,27.26824993,85.965,85.921,26.37643356]
[1770472167468,31.49961692,85.98,85.938,26.37643356]
[1770472170767,1.50185829,85.99,85.94,26.37643356]
[1770472170973,27.26824993,86.029,85.971,26.37643356]
[1770472171269,27.26824993,86.029,85.929,20.972]
[1770472171270,27.26824993,86.029,85.981,26.37643356]
[1770472171670,27.26824993,86.056,85.991,26.37643356]
[1770472171867,27.26824993,86.056,85.943,35.04]
[1770472171868,27.26824993,86.056,86.011,26.37643356]
[1770472172267,4.23136699,86.05,86.011,26.37643356]
[1770472173060,4.23136699,86.04,85.998,26.37643356]
[1770472173274,31.49961692,86.05,86.001,26.37643356]
[1770472173474,31.49961692,86.05,86.0,4.23136699]
[1770472173475,31.49961692,86.05,86.003,26.37643356]
[1770472173870,4.23136699,86.06,86.007,26.37643356]
[1770472174066,4.23136699,86.06,86.011,26.37643356]
[1770472174974,31.49961692,86.06,86.011,26.37643356]
[1770472175374,4.23136699,86.05,86.011,26.37643356]
[1770472175570,4.23136699,86.05,85.958,260.95735435]
[1770472175571,4.23136699,86.04,85.997,26.37643356]
[1770472177067,31.49961692,86.05,86.002,27.76740784]
[1770472178670,31.49961692,86.05,86.003,10.477]
[1770472178876,31.49961692,86.05,86.004,27.76740784]
[1770472179470,31.48691312,86.05,86.004,27.76740784]
[1770472182067,4.21866319,86.04,86.004,27.76740784]
[1770472183884,2.02292062,86.095,85.988,10.4788]
[1770472183885,4.21866319,86.02,85.991,27.76740784]
[1770472184781,31.97455705,86.03,85.991,27.76740784]
[1770472185677,27.75589386,86.03,85.991,27.76740784]
[1770472189176,4.21866319,86.04,85.993,27.76740784]
[1770472189384,31.97455705,86.04,85.993,27.76740784]
[1770472190283,4.21866319,86.04,85.993,27.76740784]
[1770472190587,27.75589386,86.059,86.021,27.76740784]
[1770472191072,27.75589386,86.059,86.022,38.24210784]
[1770472192582,4.21866319,86.05,86.009,27.76740784]
[1770472192778,27.75589386,86.029,85.97,4.21866319]
[1770472192978,27.75589386,86.029,85.971,27.76740784]
[1770472193480,4.21866319,86.02,85.983,10.4795]
[1770472196080,4.21866319,86.02,85.983,27.76740784]
[1770472196780,27.75589386,86.029,85.983,27.76740784]
[1770472196983,27.75589386,86.029,85.985,27.76740784]
[1770472197586,27.75589386,86.029,85.99,4.21866319]
[1770472198086,27.75589386,86.029,85.989,38.24610784]
[1770472198680,27.75589386,86.029,85.99,27.76740784]
[1770472199386,27.75589386,86.029,85.99,31.98607103]
[1770472200580,27.75589386,86.029,85.992,27.76740784]
[1770472203689,31.97455705,86.04,85.997,38.24510784]
[1770472204990,27.75589386,86.04,86.0,31.98607103]
[1770472205783,27.75589386,86.04,86.002,10.4771]
[1770472206585,26.27362455,86.052,86.007,25.67337061]
[1770472206790,26.27362455,86.052,85.96,20.9646]
[1770472206791,26.27362455,86.052,86.011,25.67337061]
[1770472207692,26.27362455,86.052,86.012,10.4759]
[1770472208791,26.27362455,86.052,86.012,36.14927061]
[1770472209387,26.27362455,86.052,86.014,10.4756]
[1770472211192,26.27362455,86.052,86.022,10.4747]
[1770472211394,26.27362455,86.052,86.015,24.9273963]
[1770472212894,26.27362455,86.052,86.021,10.4748]
[1770472213192,26.4237004,86.075,86.036,10.473]
[1770472214190,2.02276776,86.105,85.98,35.26748965]
[1770472214191,26.4237004,86.085,86.043,24.9273963]
[1770472215696,26.4237004,86.085,86.053,10.4709]
[1770472217794,26.4237004,86.099,86.059,24.9273963]
[1770472218295,4.21866319,86.12,86.061,24.9273963]
[1770472218996,4.21866319,86.12,86.071,24.9273963]
[1770472219796,4.21866319,86.12,86.073,10.4684]
[1770472220205,24.59391083,86.119,86.074,24.9273963]
[1770472220504,24.59391083,86.119,86.076,24.9273963]
[1770472221705,24.59391083,86.119,86.078,24.9273963]
[1770472222692,4.21866319,86.11,86.065,24.9273963]
[1770472222902,4.21866319,86.11,86.061,10.47]
[1770472222903,28.94604734,86.1,86.062,24.9273963]
[1770472223308,4.21866319,86.09,86.062,24.9273963]
[1770472223703,4.21866319,86.07,86.035,24.9273963]
[1770472224209,4.21866319,86.06,86.011,24.9273963]
[1770472224400,4.21866319,86.05,86.011,24.9273963]
[1770472224908,4.21866319,86.06,86.011,24.9273963]
[1770472225801,4.21866319,86.06,86.016,10.4755]
[1770472226006,4.21866319,86.06,86.017,24.9273963]
[1770472226402,4.21866319,86.06,86.019,24.9273963]
[1770472226599,4.21866319,86.07,86.021,24.9273963]
[1770472227111,4.21866319,86.08,86.034,24.9273963]
[1770472227410,24.76422673,86.083,86.034,24.9273963]
[1770472228204,24.76422673,86.083,86.05,10.4713]
[1770472228710,24.76422673,86.083,86.04,10.4724]
[1770472229812,24.76422673,86.083,86.034,24.9273963]
[1770472229813,24.7415578,86.099,86.051,10.4711]
[1770472230110,24.7415578,86.099,86.052,24.9273963]
[1770472230311,24.7415578,86.099,86.054,10.4708]
[1770472230513,21.50468228,86.148,86.052,24.9273963]
[1770472230514,37.25250378,86.12,86.052,24.9273963]
[1770472230705,24.70659202,86.119,86.052,24.9273963]
[1770472231708,24.70659202,86.119,86.072,10.4686]
[1770472236623,24.70659202,86.119,86.065,24.9273963]
[1770472238017,24.54925665,86.107,86.051,26.98326969]
[1770472238214,12.54591176,86.1,86.021,26.98326969]
[1770472238424,24.5464326,86.079,86.021,26.98326969]
[1770472239127,24.51678545,86.091,86.001,26.98326969]
[1770472239423,24.61722059,86.079,86.001,26.98326969]
[1770472239618,12.55030736,86.08,86.001,26.98326969]
[1770472239824,12.55030736,86.08,85.97,163.0393]
[1770472239825,24.61722059,86.099,86.041,26.98326969]
[1770472240727,24.61722059,86.099,86.045,26.98326969]
[1770472241823,24.61722059,86.099,85.98,49.22788965]
[1770472241824,24.79409279,86.079,86.013,26.98326969]
[1770472242327,24.79409279,86.079,86.024,10.4745]
[1770472242532,24.79409279,86.079,86.013,26.98326969]
[1770472243229,24.79409279,86.079,86.025,26.98326969]
[1770472243832,24.8551626,86.078,86.001,26.98326969]
[1770472244433,24.82449439,86.116,86.041,26.98326969]
[1770472244932,24.82449439,86.116,86.046,26.98326969]
[1770472247418,24.82449439,86.116,86.048,26.98326969]
[1770472249917,26.07070086,86.099,86.048,26.98326969]
[1770472251334,26.07070086,86.099,86.037,26.98326969]
[1770472252626,26.07070086,86.099,86.04,26.98326969]
[1770472252822,25.53629794,86.096,86.04,26.98326969]
[1770472253725,25.85074529,86.092,86.04,26.98326969]
[1770472254528,12.55030736,86.1,86.04,26.98326969]
[1770472255637,25.82229943,86.105,86.055,26.98326969]
[1770472259834,10.4648,86.104,86.055,26.98326969]
[1770472260037,10.77758284,86.093,86.021,26.98326969]
[1770472260243,25.43443021,86.079,86.021,26.98326969]
[1770472260939,12.55030736,86.08,86.022,26.98326969]
[1770472260940,25.40842866,86.077,86.022,26.98326969]
[1770472261644,25.01608437,86.073,86.022,26.98326969]
[1770472263542,25.01608437,86.073,86.024,10.4744]
[1770472263842,25.01608437,86.073,86.025,26.98326969]
[1770472264448,25.01608437,86.073,86.036,10.4729]
[1770472264739,25.01608437,86.073,86.025,26.98326969]
[1770472267445,23.3278902,86.11,86.028,24.81813494]
[1770472267646,24.26116849,86.109,86.028,24.81813494]
[1770472268949,24.26116849,86.106,86.052,24.81813494]
[1770472269845,10.4661,86.094,86.052,24.81813494]
[1770472270546,25.95300568,86.102,86.052,24.81813494]
[1770472271646,25.95300568,86.102,86.054,24.74441531]
[1770472273646,25.95300568,86.102,86.057,24.74441531]
[1770472274355,25.95300568,86.102,86.058,10.4703]
[1770472274554,25.95300568,86.102,86.059,24.74441531]
[1770472275443,25.95300568,86.102,86.061,24.74441531]
[1770472276852,25.95300568,86.102,86.063,10.4697]
[1770472277157,25.95300568,86.102,86.063,35.21411531]
[1770472278046,25.95300568,86.102,86.054,10.4708]
[1770472280258,25.95300568,86.102,86.049,24.74441531]
[1770472280957,25.95300568,86.102,86.057,10.4704]
[1770472281954,25.95300568,86.102,86.067,10.4692]
[1770472284548,25.95300568,86.102,86.059,10.4702]
[1770472285354,25.95300568,86.102,86.059,35.21461531]
[1770472285550,25.95300568,86.102,86.066,10.4694]
[1770472286762,25.95300568,86.102,86.059,24.74441531]
[1770472289354,4.21427731,86.09,86.059,24.74441531]
[1770472290862,4.21427731,86.1,86.059,24.74441531]
[1770472292962,4.21427731,86.1,86.067,24.74441531]
[1770472293160,4.21427731,86.11,86.067,24.74441531]
[1770472293959,4.21427731,86.11,86.07,24.74441531]
[1770472294760,4.21427731,86.11,86.075,24.74441531]
[1770472294961,29.26518541,86.12,86.075,24.74441531]
[1770472295360,29.26518541,86.12,86.076,10.4682]
[1770472295759,25.0509081,86.12,86.076,35.21261531]
[1770472295965,4.21427731,86.11,86.076,35.21261531]
[1770472300274,4.21427731,86.11,86.076,24.74441531]
[1770472300461,25.0509081,86.12,86.076,24.74441531]
[1770472300666,4.21427731,86.1,86.076,24.74441531]
[1770472300866,4.21427731,86.11,86.076,24.74441531]
[1770472301376,4.21309956,86.11,86.076,24.74441531]
[1770472302080,4.21309956,86.1,86.076,24.74441531]
[1770472303181,4.21309956,86.11,86.076,24.74441531]
[1770472308784,10.4622,86.126,86.078,25.57075364]
[1770472308980,4.21309956,86.12,86.078,25.57075364]
[1770472309184,4.21309956,86.11,86.078,25.57075364]
[1770472310087,14.67719956,86.11,86.078,25.57075364]
[1770472310383,4.21309956,86.1,86.062,25.57075364]
[1770472311787,14.67839956,86.1,86.062,25.57075364]
[1770472313685,4.21309956,86.1,86.062,25.57075364]
[1770472315495,4.21309956,86.11,86.064,25.57075364]
[1770472315686,4.21309956,86.12,86.071,25.57075364]
[1770472316787,4.21309956,86.12,86.075,25.57075364]
[1770472317590,4.21309956,86.12,86.077,10.468]
[1770472317792,4.21309956,86.12,86.078,25.57075364]
[1770472318689,4.21309956,86.14,86.091,25.57075364]
[1770472319392,4.21309956,86.14,86.098,25.57075364]
[1770472320205,4.21309956,86.12,86.098,25.57075364]
[1770472321091,4.21309956,86.14,86.101,25.57075364]
[1770472322099,4.21309956,86.14,86.106,10.4644]
[1770472322288,4.21309956,86.14,86.052,14.46816448]
[1770472322289,10.80861065,86.116,86.001,14.47522483]
[1770472322494,9.956e-05,86.03,85.991,25.57075364]
[1770472322687,162.64,86.149,85.993,39.56969963]
[1770472322688,4.21309956,86.02,85.993,39.56969963]
[1770472322888,4.21309956,86.03,85.993,39.56969963]
[1770472323190,8.66306484,86.029,85.993,39.56969963]
[1770472323394,10.4706,86.057,85.993,39.56969963]
[1770472323585,8.65064609,86.056,85.993,39.56969963]
[1770472323784,10.78794286,86.052,85.993,39.56969963]
[1770472323989,10.78794286,86.046,85.993,39.56969963]
[1770472324187,8.65064609,86.045,85.993,39.56969963]
[1770472324387,8.65064609,86.044,85.993,39.56969963]
[1770472324592,8.65064609,86.043,85.993,39.56969963]
[1770472324899,21.5798141,86.088,85.898,20.9796]
[1770472324900,10.78794286,86.032,85.978,31.81715909]
[1770472325102,8.65064609,86.031,85.978,31.81715909]
[1770472325302,8.65064609,86.03,85.978,31.81715909]
[1770472325600,8.65064609,86.029,85.978,31.81715909]
[1770472325805,8.65064609,86.028,85.978,31.81715909]
[1770472325991,8.65064609,86.027,85.98,31.33452]
[1770472326195,8.65064609,86.026,85.98,31.33452]
[1770472326406,8.65064609,86.025,85.98,31.33452]
[1770472326598,8.65064609,86.024,85.98,31.33452]
[1770472326799,8.65064609,86.023,85.98,31.33452]
[1770472327002,8.65064609,86.022,85.98,31.33452]
[1770472327300,10.4716,86.049,85.98,31.33452]
[1770472327505,10.78794286,86.042,85.98,31.33452]
[1770472327699,9.16994288,86.041,85.98,31.33452]
[1770472327897,9.16994288,86.04,85.98,31.33452]
[1770472328103,9.16994288,86.039,85.98,31.33452]
[1770472328299,9.16994288,86.038,85.98,31.33452]
[1770472328603,9.16994288,86.037,85.98,31.33452]
[1770472328805,10.4733,86.034,85.98,31.33452]
[1770472329105,9.16994288,86.033,85.98,31.33452]
[1770472329404,10.4741,86.028,85.98,31.33452]
[1770472329599,9.16994288,86.027,85.98,31.33452]
[1770472329799,9.16994288,86.026,85.98,31.33452]
[1770472329999,9.16994288,86.025,85.98,31.33452]
[1770472330316,9.16994288,86.024,85.954,31.75426843]
[1770472330493,9.16994288,86.023,85.954,31.75426843]
[1770472330694,9.16994288,86.022,85.954,31.75426843]
[1770472330901,9.16994288,86.021,85.954,31.75426843]
[1770472331102,9.16994288,86.02,85.954,31.75426843]
[1770472331293,9.16994288,86.019,85.954,31.75426843]
[1770472331499,9.16994288,86.018,85.954,31.75426843]
[1770472331691,10.4763,86.01,85.954,31.75426843]
[1770472331890,9.16994288,86.009,85.954,31.75426843]
[1770472332095,9.16994288,86.008,85.954,31.75426843]
[1770472332298,10.4772,86.002,85.954,31.75426843]
[1770472332601,9.16994288,86.001,85.954,31.75426843]
[1770472332796,9.16994288,86.0,85.954,31.75426843]
[1770472332998,9.16994288,85.999,85.954,31.75426843]
[1770472333199,21.5798141,86.045,85.954,31.75426843]
[1770472333200,9.16994288,85.998,85.954,31.75426843]
[1770472333402,9.16994288,86.018,85.954,31.75426843]
[1770472333603,9.16994288,86.017,85.954,31.75426843]
[1770472333904,9.16994288,86.016,85.954,31.75426843]
[1770472334102,10.4746,86.024,85.954,31.75426843]
[1770472334103,9.16994288,86.015,85.954,31.75426843]
[1770472334299,9.16994288,86.023,85.954,31.75426843]
[1770472334500,9.16994288,86.022,85.954,31.75426843]
[1770472334700,9.16994288,86.021,85.954,31.75426843]
[1770472334898,9.16994288,86.035,85.959,31.96971746]
[1770472335101,9.16994288,86.051,85.959,31.96971746]
[1770472335297,9.16994288,86.05,85.959,31.96971746]
[1770472335600,9.16994288,86.049,85.978,31.80812546]
[1770472335806,9.16994288,86.048,85.978,31.80812546]
[1770472336006,9.16994288,86.047,85.978,31.80812546]
[1770472336206,9.16994288,86.046,85.978,31.80812546]
[1770472336403,9.16994288,86.045,85.978,31.80812546]
[1770472336603,9.16994288,86.044,85.978,31.80812546]
[1770472336805,9.16994288,86.043,85.98,31.80361538]
[1770472336997,10.78794286,86.057,85.98,31.80361538]
[1770472336998,9.16994288,86.042,85.98,31.80361538]
[1770472337196,9.16994288,86.041,85.98,31.80361538]
[1770472337402,9.16994288,86.046,85.98,31.80361538]
[1770472337605,10.4722,86.043,85.981,10.4797]
[1770472337798,9.16994288,86.042,85.982,31.77807709]
[1770472338211,10.4722,86.043,85.982,31.77807709]
[1770472339917,19.64214288,86.043,85.982,31.77807709]
[1770472340209,10.4722,86.043,85.982,31.77807709]
[1770472340707,10.4729,86.037,85.982,31.77807709]
[1770472341114,45.3929,86.037,85.982,31.77807709]
[1770472341306,9.16994288,86.036,85.982,31.77807709]